fUST/lending_fUST_20250202
["ID","MTS","AMOUNT","RATE_DAILY","PERIOD"]
[351214523,1738435837281,-500.0,0.00016986,2]
[351214524,1738435837290,-1170.66,0.00016986,2]
[351214525,1738435837299,-500.0,0.00016986,2]
[351214526,1738435837309,-500.0,0.00016986,2]
[351214527,1738435837318,-705.11,0.00016986,2]
[351214528,1738435837327,-500.0,0.00016986,2]
[351214529,1738435837336,-2258.15,0.00016986,2]
[351214530,1738435837346,-151.0,0.00016986,2]
[351214531,1738435837360,-151.0,0.00016986,2]
[351214532,1738435837370,-500.0,0.00016986,2]
[351214533,1738435837379,-4391.38,0.00016986,2]
[351214534,1738435837388,-188.291321,0.00016986,2]
[351214535,1738435837397,-840.83,0.00016986,2]
[351214536,1738435837407,-1131.92,0.00016986,2]
[351214537,1738435837417,-691.22,0.00016986,2]
[351214538,1738435837425,-500.0,0.00016986,2]
[351214539,1738435837434,-586.83,0.00016986,2]
[351214540,1738435837443,-500.0,0.00016986,2]
[351214541,1738435837452,-808.89,0.00016986,2]
[351214542,1738435837462,-524.14,0.00016986,2]
[351214543,1738435837471,-151.0,0.00016986,2]
[351214544,1738435837484,-452.449978,0.00016986,2]
[351214545,1738435837493,-627.48,0.00016986,2]
[351214546,1738435837502,-607.11,0.00016986,2]
[351214547,1738435837511,-452.449978,0.00016986,2]
[351214548,1738435837520,-500.0,0.00016986,2]
[351214549,1738435837531,-606.15,0.00016986,2]
[351214550,1738435837541,-598.3,0.00016986,2]
[351214551,1738435837549,-582.23,0.00016986,2]
[351214552,1738435837559,-13341.64,0.00016986,2]
[351214553,1738435837569,-578.29,0.00016986,2]
[351214555,1738435837578,-961.27,0.00016986,2]
[351214556,1738435837587,-500.0,0.00016986,2]
[351214558,1738435837597,-500.0,0.00016986,2]
[351214559,1738435837606,-3791.43,0.00016986,2]
[351214560,1738435837615,-565.92,0.00016986,2]
[351214561,1738435837624,-3923.58,0.00016986,2]
[351214563,1738435837632,-253.71892882,0.00017107,2]
[351214565,1738435837642,-151.0,0.00017122,2]
[351214566,1738435837652,-341.68018,0.00017122,2]
[351214567,1738435837661,-341.68018,0.00017122,2]
[351214568,1738435837670,-239.085177,0.00017122,2]
[351214569,1738435837681,-239.085177,0.00017122,2]
[351214570,1738435837691,-202.303099,0.00017122,2]
[351214571,1738435837701,-202.303099,0.00017122,2]
[351214572,1738435837711,-162.40433,0.00017122,2]
[351214573,1738435837726,-151.0,0.00017122,2]
[351214574,1738435837737,-151.0,0.00017123,2]
[351214576,1738435837747,-500.0,0.00017123,2]
[351214578,1738435837758,-241.77197334,0.00017123,2]
[351214580,1738435837768,-151.0,0.00017123,2]
[351214582,1738435837778,-500.0,0.00017123,2]
[351214584,1738435837787,-500.0,0.00017123,2]
[351214586,1738435837796,-500.0,0.00017123,2]
[351214588,1738435837806,-500.0,0.00017123,2]
[351214590,1738435837816,-500.0,0.00017123,2]
[351214592,1738435837826,-500.0,0.00017123,2]
[351214594,1738435837835,-500.0,0.00017123,2]
[351214595,1738435837844,-500.0,0.00017123,2]
[351214598,1738435837854,-522.65,0.00017123,2]
[351214600,1738435837864,-500.0,0.00017123,2]
[351214602,1738435837875,-500.0,0.00017123,2]
[351214603,1738435837897,-500.0,0.00017123,2]
[351214605,1738435837920,-500.0,0.00017123,2]
[351214607,1738435837943,-580.07,0.00017123,2]
[351214610,1738435837964,-500.0,0.00017123,2]
[351214611,1738435837989,-898.35,0.00017123,2]
[351214613,1738435838010,-500.0,0.00017123,2]
[351214615,1738435838032,-500.0,0.00017123,2]
[351214617,1738435838055,-500.0,0.00017123,2]
[351214619,1738435838077,-500.0,0.00017123,2]
[351214621,1738435838099,-500.0,0.00017123,2]
[351214623,1738435838123,-1170.66,0.00017123,2]
[351214625,1738435838147,-500.0,0.00017123,2]
[351214627,1738435838158,-500.0,0.00017123,2]
[351214636,1738435838266,-705.11,0.00017123,2]
[351214638,1738435838275,-500.0,0.00017123,2]
[351214639,1738435838286,-2258.15,0.00017123,2]
[351214640,1738435838296,-151.0,0.00017123,2]
[351214641,1738435838306,-151.0,0.00017123,2]
[351214642,1738435838315,-254.83450761,0.00017123,2]
[351214643,1738435838325,-4391.38,0.00017123,2]
[351214644,1738435838334,-840.83,0.00017123,2]
[351214645,1738435838344,-1131.92,0.00017123,2]
[351214646,1738435838353,-691.22,0.00017123,2]
[351214647,1738435838363,-500.0,0.00017123,2]
[351214648,1738435838372,-586.83,0.00017123,2]
[351214649,1738435838382,-500.0,0.00017123,2]
[351214650,1738435838391,-808.89,0.00017123,2]
[351214651,1738435838400,-524.14,0.00017123,2]
[351214652,1738435838409,-151.0,0.00017123,2]
[351214653,1738435838418,-452.449978,0.00017123,2]
[351214654,1738435838429,-627.48,0.00017123,2]
[351214655,1738435838439,-607.11,0.00017123,2]
[351214656,1738435838448,-452.449978,0.00017123,2]
[351214657,1738435838458,-500.0,0.00017123,2]
[351214658,1738435838469,-606.15,0.00017123,2]
[351214659,1738435838478,-598.3,0.00017123,2]
[351214660,1738435838488,-582.23,0.00017123,2]
[351214661,1738435838499,-13341.64,0.00017123,2]
[351214662,1738435838508,-578.29,0.00017123,2]
[351214663,1738435838518,-961.27,0.00017123,2]
[351214664,1738435838528,-500.0,0.00017123,2]
[351214665,1738435838538,-500.0,0.00017123,2]
[351214666,1738435838547,-3791.43,0.00017123,2]
[351214667,1738435838557,-565.92,0.00017123,2]
[351214668,1738435838568,-3923.58,0.00017123,2]
[351214669,1738435838577,-500.0,0.00017177,2]
[351214670,1738435838586,-267.78672905,0.00017177,2]
[351214671,1738435838595,-500.0,0.00017177,2]
[351214672,1738435838604,-240.01350425,0.00017177,2]
[351214673,1738435838614,-500.0,0.00017177,2]
[351214674,1738435838624,-500.0,0.00017177,2]
[351214675,1738435838634,-159.40752495,0.00017177,2]
[351214676,1738435838644,-207.80326485,0.00017177,2]
[351214677,1738435838654,-151.0,0.00017259,2]
[351214678,1738435838663,-341.68018,0.00017259,2]
[351214679,1738435838673,-341.68018,0.00017259,2]
[351214680,1738435838687,-239.085177,0.00017259,2]
[351214681,1738435838696,-239.085177,0.00017259,2]
[351214682,1738435838705,-151.0,0.00017259,2]
[351214683,1738435838715,-151.0,0.0001726,2]
[351214684,1738435838725,-500.0,0.0001726,2]
[351214685,1738435838735,-500.0,0.0001726,2]
[351214686,1738435838745,-500.0,0.0001726,2]
[351214687,1738435838754,-500.0,0.0001726,2]
[351214688,1738435838763,-150.11,0.0001726,2]
[351214689,1738435838773,-500.0,0.0001726,2]
[351214690,1738435838784,-500.0,0.0001726,2]
[351214691,1738435838794,-500.0,0.0001726,2]
[351214692,1738435838803,-500.0,0.0001726,2]
[351214693,1738435838812,-500.0,0.0001726,2]
[351214694,1738435838822,-522.65,0.0001726,2]
[351214695,1738435838832,-500.0,0.0001726,2]
[351214696,1738435838842,-500.0,0.0001726,2]
[351214697,1738435838852,-500.0,0.0001726,2]
[351214698,1738435838861,-500.0,0.0001726,2]
[351214699,1738435838871,-580.07,0.0001726,2]
[351214700,1738435838881,-500.0,0.0001726,2]
[351214701,1738435838891,-202.303099,0.0001726,2]
[351214702,1738435838901,-202.303099,0.0001726,2]
[351214703,1738435838911,-898.35,0.0001726,2]
[351214704,1738435838921,-500.0,0.0001726,2]
[351214705,1738435838930,-500.0,0.0001726,2]
[351214706,1738435838940,-500.0,0.0001726,2]
[351214707,1738435838950,-500.0,0.0001726,2]
[351214708,1738435838959,-500.0,0.0001726,2]
[351214709,1738435838969,-1170.66,0.0001726,2]
[351214710,1738435838980,-500.0,0.0001726,2]
[351214711,1738435838990,-586.95082511,0.0001726,2]
[351214712,1738435839000,-705.11,0.0001726,2]
[351214713,1738435839011,-500.0,0.0001726,2]
[351214714,1738435839020,-2258.15,0.0001726,2]
[351214715,1738435839032,-151.0,0.0001726,2]
[351214716,1738435839041,-151.0,0.0001726,2]
[351214717,1738435839049,-4391.38,0.0001726,2]
[351214718,1738435839059,-840.83,0.0001726,2]
[351214719,1738435839069,-1131.92,0.0001726,2]
[351214720,1738435839078,-691.22,0.0001726,2]
[351214721,1738435839088,-500.0,0.0001726,2]
[351214722,1738435839098,-500.0,0.0001726,2]
[351214723,1738435839107,-150.11,0.0001726,2]
[351214724,1738435839117,-150.11,0.0001726,2]
[351214725,1738435839127,-586.83,0.0001726,2]
[351214726,1738435839137,-204.59782497,0.0001726,2]
[351214727,1738435839146,-500.0,0.0001726,2]
[351214728,1738435839156,-808.89,0.0001726,2]
[351214729,1738435839166,-524.14,0.0001726,2]
[351214730,1738435839175,-151.0,0.0001726,2]
[351214731,1738435839185,-452.449978,0.0001726,2]
[351214732,1738435839196,-627.48,0.0001726,2]
[351214733,1738435839205,-607.11,0.0001726,2]
[351214734,1738435839216,-452.449978,0.0001726,2]
[351214735,1738435839225,-500.0,0.0001726,2]
[351214736,1738435839235,-606.15,0.0001726,2]
[351214737,1738435839244,-598.3,0.0001726,2]
[351214738,1738435839254,-582.23,0.0001726,2]
[351214739,1738435839263,-13341.64,0.0001726,2]
[351214740,1738435839273,-578.29,0.0001726,2]
[351214741,1738435839285,-961.27,0.0001726,2]
[351214742,1738435839295,-500.0,0.0001726,2]
[351214743,1738435839304,-377.45,0.0001726,2]
[351214744,1738435839314,-3791.43,0.0001726,2]
[351214745,1738435839324,-565.92,0.0001726,2]
[351214746,1738435839336,-3923.58,0.0001726,2]
[351214747,1738435839348,-456.0,0.000173,7]
[351214748,1738435839358,-253.71892882,0.00017314,2]
[351214749,1738435839367,-294.28244076,0.00017397,2]
[351214750,1738435839377,-500.0,0.00017397,2]
[351214751,1738435839387,-151.0,0.00017397,2]
[351214752,1738435839397,-422.02029048,0.00017397,2]
[351214753,1738435839407,-500.0,0.00017397,2]
[351214754,1738435839418,-500.0,0.00017397,2]
[351214755,1738435839428,-500.0,0.00017397,2]
[351214756,1738435839437,-500.0,0.00017397,2]
[351214757,1738435839447,-478.64470368,0.00017397,2]
[351214758,1738435839457,-500.0,0.00017397,2]
[351214759,1738435839466,-500.0,0.00017397,2]
[351214760,1738435839475,-522.65,0.00017397,2]
[351214761,1738435839485,-500.0,0.00017397,2]
[351214762,1738435839496,-500.0,0.00017397,2]
[351214763,1738435839511,-341.68018,0.00017397,2]
[351214764,1738435839521,-341.68018,0.00017397,2]
[351214765,1738435839532,-239.085177,0.00017397,2]
[351214766,1738435839541,-239.085177,0.00017397,2]
[351214767,1738435839551,-500.0,0.00017397,2]
[351214768,1738435839559,-500.0,0.00017397,2]
[351214769,1738435839569,-580.07,0.00017397,2]
[351214770,1738435839578,-500.0,0.00017397,2]
[351214771,1738435839588,-202.303099,0.00017397,2]
[351214772,1738435839597,-202.303099,0.00017397,2]
[351214773,1738435839607,-898.35,0.00017397,2]
[351214774,1738435839617,-500.0,0.00017397,2]
[351214775,1738435839627,-500.0,0.00017397,2]
[351214776,1738435839636,-500.0,0.00017397,2]
[351214777,1738435839645,-500.0,0.00017397,2]
[351214778,1738435839655,-1170.66,0.00017397,2]
[351214779,1738435839665,-500.0,0.00017397,2]
[351214780,1738435839675,-705.11,0.00017397,2]
[351214781,1738435839688,-500.0,0.00017397,2]
[351214782,1738435839697,-2258.15,0.00017397,2]
[351214783,1738435839707,-151.0,0.00017397,2]
[351214784,1738435839717,-151.0,0.00017397,2]
[351214785,1738435839726,-4391.38,0.00017397,2]
[351214786,1738435839736,-840.83,0.00017397,2]
[351214787,1738435839746,-1131.92,0.00017397,2]
[351214788,1738435839755,-691.22,0.00017397,2]
[351214789,1738435839765,-500.0,0.00017397,2]
[351214790,1738435839775,-586.83,0.00017397,2]
[351214791,1738435839786,-500.0,0.00017397,2]
[351214792,1738435839795,-808.89,0.00017397,2]
[351214793,1738435839805,-524.14,0.00017397,2]
[351214794,1738435839814,-452.449978,0.00017397,2]
[351214795,1738435839824,-627.48,0.00017397,2]
[351214796,1738435839833,-607.11,0.00017397,2]
[351214797,1738435839843,-452.449978,0.00017397,2]
[351214798,1738435839852,-500.0,0.00017397,2]
[351214799,1738435839862,-606.15,0.00017397,2]
[351214800,1738435839872,-598.3,0.00017397,2]
[351214801,1738435839881,-582.23,0.00017397,2]
[351214803,1738435839891,-9455.04240036,0.00017397,2]
[351214804,1738435840005,-3886.59759964,0.00017397,2]
[351214805,1738435840015,-462.79628557,0.00017397,2]
[351214806,1738435840032,-500.0,0.00016574,2]
[351214807,1738435840042,-115.49371443,0.00017397,2]
[351214808,1738435840051,-847.05628557,0.00017397,2]
[351214827,1738435846773,-500.0,0.00016438,2]
[351214828,1738435846783,-500.0,0.00016438,2]
[351214829,1738435846794,-595.05,0.00016438,2]
[351214830,1738435846803,-800.59,0.00016438,2]
[351214831,1738435846812,-500.0,0.00016575,2]
[351214832,1738435846821,-500.0,0.00016575,2]
[351214833,1738435846831,-595.05,0.00016575,2]
[351214834,1738435846840,-800.59,0.00016575,2]
[351214835,1738435846849,-500.0,0.0001671,2]
[351214836,1738435846859,-500.0,0.00016711,2]
[351214837,1738435846869,-500.0,0.00016711,2]
[351214838,1738435846879,-500.0,0.00016712,2]
[351214839,1738435846889,-500.0,0.00016712,2]
[351214840,1738435846899,-595.05,0.00016712,2]
[351214841,1738435846909,-800.59,0.00016712,2]
[351214842,1738435846919,-500.0,0.00016848,2]
[351214843,1738435846930,-500.0,0.00016848,2]
[351214844,1738435846939,-16890.16353332,0.00016849,5]
[351214845,1738435846948,-500.0,0.00016849,2]
[351214846,1738435846959,-500.0,0.00016849,2]
[351214847,1738435846971,-595.05,0.00016849,2]
[351214848,1738435846981,-500.0,0.00016984,2]
[351214849,1738435846991,-500.0,0.00016985,2]
[351214850,1738435847001,-500.0,0.00016986,2]
[351214851,1738435847010,-500.0,0.00016986,2]
[351214852,1738435847020,-595.05,0.00016986,2]
[351214853,1738435847029,-500.0,0.00017121,2]
[351214854,1738435847039,-500.0,0.00017121,2]
[351214855,1738435847048,-500.0,0.00017121,2]
[351214856,1738435847057,-500.0,0.00017122,2]
[351214857,1738435847067,-500.0,0.00017122,2]
[351214858,1738435847078,-500.0,0.00017123,2]
[351214859,1738435847087,-500.0,0.00017123,2]
[351214860,1738435847096,-500.0,0.00017258,2]
[351214861,1738435847106,-500.0,0.00017259,2]
[351214862,1738435847115,-500.0,0.0001726,2]
[351214863,1738435847125,-500.0,0.0001726,2]
[351214864,1738435847134,-398.22,0.00017313,2]
[351214865,1738435847143,-114.21371443,0.00017397,2]
[351214866,1738435847153,-500.0,0.00017397,2]
[351214867,1738435847162,-3791.43,0.00017397,2]
[351214868,1738435847171,-565.92,0.00017397,2]
[351214869,1738435847181,-3923.58,0.00017397,2]
[351214870,1738435847191,-601.0,0.00017397,2]
[351214871,1738435847201,-500.0,0.00017397,2]
[351214872,1738435847210,-1296.85764374,0.00017447,2]
[351214873,1738435847220,-152.0,0.00017494,2]
[351214874,1738435847230,-154.0,0.00017494,2]
[351214875,1738435847239,-154.0,0.00017494,2]
[351214876,1738435847250,-154.0,0.00017494,2]
[351214877,1738435847259,-154.0,0.00017494,2]
[351214878,1738435847269,-154.0,0.00017494,2]
[351214879,1738435847279,-154.0,0.00017494,2]
[351214880,1738435847289,-154.0,0.00017494,2]
[351214881,1738435847298,-154.0,0.00017494,2]
[351214882,1738435847308,-154.0,0.00017494,2]
[351214883,1738435847317,-154.0,0.00017494,2]
[351214884,1738435847326,-154.0,0.00017494,2]
[351214885,1738435847336,-154.0,0.00017494,2]
[351214886,1738435847345,-154.0,0.00017494,2]
[351214887,1738435847355,-162.0,0.00017494,2]
[351214888,1738435847365,-253.71892882,0.00017521,2]
[351214889,1738435847374,-150.11,0.00017534,2]
[351214890,1738435847384,-656.16272784,0.00017534,2]
[351214891,1738435847394,-150.11,0.00017534,2]
[351214892,1738435847405,-151.19787,0.00017534,2]
[351214893,1738435847415,-500.0,0.00017534,2]
[351214894,1738435847424,-151.0,0.00017534,2]
[351214895,1738435847433,-500.0,0.00017534,2]
[351214896,1738435847442,-257.03388988,0.00017534,2]
[351214897,1738435847452,-500.0,0.00017534,2]
[351214898,1738435847461,-500.0,0.00017534,2]
[351214899,1738435847471,-500.0,0.00017534,2]
[351214900,1738435847480,-500.0,0.00017534,2]
[351214901,1738435847490,-522.65,0.00017534,2]
[351214902,1738435847499,-500.0,0.00017534,2]
[351214903,1738435847509,-500.0,0.00017534,2]
[351214904,1738435847519,-341.68018,0.00017534,2]
[351214905,1738435847528,-341.68018,0.00017534,2]
[351214906,1738435847538,-239.085177,0.00017534,2]
[351214907,1738435847548,-500.0,0.00017534,2]
[351214908,1738435847558,-500.0,0.00017534,2]
[351214909,1738435847568,-202.303099,0.00017534,2]
[351214910,1738435847577,-202.303099,0.00017534,2]
[351214911,1738435847587,-500.0,0.00017534,2]
[351214912,1738435847597,-500.0,0.00017534,2]
[351214913,1738435847606,-500.0,0.00017534,2]
[351214914,1738435847616,-1170.66,0.00017534,2]
[351214915,1738435847625,-500.0,0.00017534,2]
[351214916,1738435847635,-705.11,0.00017534,2]
[351214917,1738435847644,-500.0,0.00017534,2]
[351214918,1738435847654,-2258.15,0.00017534,2]
[351214919,1738435847663,-151.0,0.00017534,2]
[351214920,1738435847672,-1688.92040756,0.00017534,2]
[351214925,1738435991709,-159.546233,0.00018048,10]
[351214926,1738435991769,-19840.453767,0.000188,10]
[351214947,1738436759140,-3106.83954363,0.00016137,2]
[351214948,1738436759163,-5572.71581436,0.000163,2]
[351214950,1738436827098,-497.67535471,0.000163,2]
[351214951,1738436827124,-171.98686751,0.0001631,2]
[351214952,1738436827146,-300.0,0.00016399,2]
[351214953,1738436827168,-3000.0,0.000164,2]
[351214954,1738436827190,-14998.83576388,0.000164,2]
[351214955,1738436827354,-7522.11067952,0.000164,2]
[351214959,1738436960506,236.820116,0.00013973,2]
[351215025,1738437038474,-150.48850908,0.00016338,2]
[351215026,1738437038484,-300.0,0.00016399,2]
[351215027,1738437038494,-513.9065307,0.000164,2]
[351215028,1738437038526,-87.63943208,0.000164,2]
[351215035,1738437040562,-9942.52134163,0.000164,2]
[351215036,1738437040571,-1652.32551595,0.0001641,2]
[351215037,1738437040618,-829.28017256,0.0001641,2]
[351215044,1738437044096,-518.39431149,0.0001641,2]
[351215045,1738437044106,-49.74746397,0.0001642,2]
[351215062,1738437046361,-2943.40096285,0.0001642,2]
[351215115,1738438216312,233.832204,0.00013973,2]
[351215136,1738438238472,-150.48850904,0.00016338,2]
[351215137,1738438238483,-6.85157318,0.0001642,2]
[351215138,1738438238492,-151.0,0.00016428,2]
[351215139,1738438238502,-2190.60549574,0.0001643,2]
[351215140,1738438238514,-809.39450426,0.0001643,2]
[351215141,1738438238523,-300.0,0.00016436,2]
[351215142,1738438238531,-2487.18524054,0.00016437,2]
[351215143,1738438238801,-11526.46556443,0.00016437,2]
[351215144,1738438238811,-431.3297498,0.00016438,2]
[351215145,1738438238820,-500.0,0.00016438,2]
[351215146,1738438238829,-500.0,0.00016438,2]
[351215147,1738438238838,-500.0,0.00016438,2]
[351215148,1738438238848,-500.0,0.00016438,2]
[351215149,1738438238857,-468.921,0.00016438,2]
[351215150,1738438238866,-500.0,0.00016438,2]
[351215151,1738438238875,-500.0,0.00016438,2]
[351215152,1738438238885,-500.0,0.00016438,2]
[351215153,1738438238895,-535.69569744,0.00016438,2]
[351215154,1738438238905,-500.0,0.00016438,2]
[351215155,1738438238915,-500.0,0.00016438,2]
[351215156,1738438238925,-500.0,0.00016438,2]
[351215157,1738438238934,-500.0,0.00016438,2]
[351215158,1738438238946,-500.0,0.00016438,2]
[351215159,1738438238955,-500.0,0.00016438,2]
[351215160,1738438238966,-572.39245361,0.00016438,2]
[351215161,1738438238975,-500.0,0.00016438,2]
[351215162,1738438238985,-500.0,0.00016438,2]
[351215163,1738438238994,-2400.97077471,0.00016438,2]
[351215164,1738438239003,-521.89469877,0.00016438,2]
[351215165,1738438239012,-500.0,0.00016438,2]
[351215166,1738438239021,-500.0,0.00016438,2]
[351215167,1738438239031,-500.0,0.00016438,2]
[351215168,1738438239040,-502.23891831,0.00016438,2]
[351215169,1738438239050,-501.80045262,0.00016438,2]
[351215170,1738438239060,-500.0,0.00016438,2]
[351215171,1738438239069,-500.0,0.00016438,2]
[351215172,1738438239079,-500.0,0.00016438,2]
[351215173,1738438239088,-500.0,0.00016438,2]
[351215174,1738438239098,-500.0,0.00016438,2]
[351215175,1738438239110,-500.0,0.00016438,2]
[351215176,1738438239119,-500.0,0.00016438,2]
[351215177,1738438239128,-500.0,0.00016438,2]
[351215178,1738438239137,-504.77628333,0.00016438,2]
[351215179,1738438239147,-500.0,0.00016438,2]
[351215180,1738438239157,-500.0,0.00016438,2]
[351215181,1738438239166,-503.0661891,0.00016438,2]
[351215182,1738438239175,-500.0,0.00016438,2]
[351215183,1738438239185,-501.12136402,0.00016438,2]
[351215184,1738438239197,-500.0,0.00016438,2]
[351215185,1738438239207,-500.0,0.00016438,2]
[351215186,1738438239216,-635.58214511,0.00016438,2]
[351215187,1738438239225,-500.0,0.00016438,2]
[351215188,1738438239235,-500.0,0.00016438,2]
[351215189,1738438239245,-500.0,0.00016438,2]
[351215190,1738438239254,-500.0,0.00016438,2]
[351215191,1738438239263,-500.0,0.00016438,2]
[351215192,1738438239272,-500.0,0.00016438,2]
[351215193,1738438239281,-502.51161419,0.00016438,2]
[351215194,1738438239417,-500.0,0.00016438,2]
[351215195,1738438239430,-502.53341103,0.00016438,2]
[351215196,1738438239440,-500.0,0.00016438,2]
[351215197,1738438239450,-500.0,0.00016438,2]
[351215198,1738438239459,-500.0,0.00016438,2]
[351215199,1738438239468,-500.0,0.00016438,2]
[351215200,1738438239478,-500.76887368,0.00016438,2]
[351215201,1738438239487,-500.0,0.00016438,2]
[351215202,1738438239498,-500.0,0.00016438,2]
[351215203,1738438239507,-500.0,0.00016438,2]
[351215204,1738438239518,-500.0,0.00016438,2]
[351215205,1738438239527,-500.0,0.00016438,2]
[351215206,1738438239537,-500.0,0.00016438,2]
[351215207,1738438239546,-500.0,0.00016438,2]
[351215208,1738438239555,-500.0,0.00016438,2]
[351215209,1738438239564,-500.0,0.00016438,2]
[351215210,1738438239573,-256.70809227,0.00016438,2]
[351215211,1738438239582,-500.0,0.00016438,2]
[351215212,1738438239592,-500.0,0.00016438,2]
[351215213,1738438239601,-342.06975907,0.00016438,2]
[351215214,1738438239611,-313.75857209,0.00016438,2]
[351215215,1738438239620,-503.90568862,0.00016438,2]
[351215216,1738438239629,-500.0,0.00016438,2]
[351215217,1738438239639,-500.0,0.00016438,2]
[351215218,1738438239648,-500.0,0.00016438,2]
[351215219,1738438239657,-500.0,0.00016438,2]
[351215220,1738438239666,-501.88,0.00016438,2]
[351215221,1738438239676,-500.0,0.00016438,2]
[351215222,1738438239685,-500.0,0.00016438,2]
[351215223,1738438239698,-500.0,0.00016438,2]
[351215224,1738438239708,-500.0,0.00016438,2]
[351215225,1738438239717,-500.0,0.00016438,2]
[351215226,1738438239727,-500.0,0.00016438,2]
[351215227,1738438239736,-500.0,0.00016438,2]
[351215228,1738438239745,-199.9831338,0.00016438,2]
[351215229,1738438239755,-500.0,0.00016438,2]
[351215230,1738438239765,-500.0,0.00016438,2]
[351215231,1738438239774,-500.0,0.00016438,2]
[351215232,1738438239784,-1180.78,0.00016438,2]
[351215233,1738438239794,-500.0,0.00016438,2]
[351215234,1738438239804,-500.0,0.00016438,2]
[351215235,1738438239814,-808.28,0.00016438,2]
[351215236,1738438239827,-500.0,0.00016438,2]
[351215238,1738438239844,-1854.74,0.00016438,2]
[351215239,1738438239853,-694.36,0.00016438,2]
[351215240,1738438239862,-500.0,0.00016438,2]
[351215241,1738438239872,-881.55133445,0.00016438,2]
[351215242,1738438239904,-7.92866555,0.00016438,2]
[351215243,1738438239914,-697.72663363,0.00016438,2]
[351215244,1738438239925,-2863.99336637,0.00016438,2]
[351215245,1738438239935,-500.0,0.00016438,2]
[351215246,1738438239949,-586.06,0.00016438,2]
[351215247,1738438239958,-500.0,0.00016438,2]
[351215248,1738438239969,-500.0,0.00016438,2]
[351215249,1738438239980,-500.0,0.00016438,2]
[351215250,1738438239990,-500.0,0.00016438,2]
[351215251,1738438239999,-674.01,0.00016438,2]
[351215252,1738438240008,-500.0,0.00016438,2]
[351215253,1738438240017,-500.0,0.00016438,2]
[351215254,1738438240027,-500.0,0.00016438,2]
[351215256,1738438240037,-724.18,0.00016438,2]
[351215257,1738438240047,-373.85264044,0.00016438,7]
[351215258,1738438240056,-500.0,0.00016438,2]
[351215259,1738438240066,-500.0,0.00016438,2]
[351215260,1738438240076,-500.0,0.00016438,2]
[351215261,1738438240085,-2686.5,0.00016438,2]
[351215262,1738438240095,-500.0,0.00016438,2]
[351215263,1738438240104,-611.77036824,0.00016438,2]
[351215264,1738438240113,-10457.65,0.00016438,2]
[351215265,1738438240123,-608.65,0.00016438,2]
[351215266,1738438240132,-500.0,0.00016438,2]
[351215268,1738438240141,-500.0,0.00016438,2]
[351215270,1738438240151,-500.0,0.00016438,2]
[351215271,1738438240160,-2904.67,0.00016438,2]
[351215272,1738438240169,-500.0,0.00016438,2]
[351215273,1738438240178,-700.52,0.00016438,2]
[351215274,1738438240187,-512.74,0.00016438,2]
[351215275,1738438240198,-500.0,0.00016438,2]
[351215276,1738438240207,-3000.0,0.0001644,2]
[351215277,1738438240216,-3000.0,0.0001645,2]